bitfinex-derivatives/quotes_BTCF0:USTF0_20250503
["timestamp","ask_amount","ask_price","bid_price","bid_amount"]
[1746248545923,0.2915826,96546.0,96545.0,0.45710512]
[1746248547420,0.2915826,96546.0,96545.0,0.28171316]
[1746248547721,0.2915826,96546.0,96545.0,0.21710512]
[1746248548817,0.2915826,96546.0,96545.0,0.24710512]
[1746248557823,0.2915826,96546.0,96545.0,0.40521411]
[1746248558226,0.2915826,96546.0,96545.0,0.61229881]
[1746248560427,0.2915826,96546.0,96545.0,0.40521411]
[1746248568536,0.2915826,96546.0,96545.0,0.24710512]
[1746248570137,0.2915826,96546.0,96545.0,0.45418982]
[1746248583342,0.2915826,96546.0,96545.0,0.61229881]
[1746248590043,0.2915826,96546.0,96545.0,0.45418982]
[1746248590850,0.2915826,96546.0,96545.0,0.24710512]
[1746248602052,0.2915826,96546.0,96545.0,0.45418982]
[1746248602551,0.2915826,96546.0,96545.0,0.24710512]
[1746248603243,0.2915826,96546.0,96545.0,0.40521411]
[1746248623569,0.2915826,96546.0,96545.0,0.25106983]
[1746248627065,0.2915826,96546.0,96545.0,0.29491012]
[1746248635576,0.2915826,96546.0,96545.0,0.13680113]
[1746248640085,0.2915826,96546.0,96545.0,0.16760113]
[1746248640585,0.2070997,96538.0,96537.0,0.21081199]
[1746248640787,0.6678997,96538.0,96537.0,0.21081199]
[1746248641471,0.7305997,96538.0,96537.0,0.21081199]
[1746248641676,0.7395997,96538.0,96537.0,0.21181199]
[1746248642286,0.7495997,96538.0,96537.0,0.21281199]
[1746248643185,0.7495997,96538.0,96537.0,0.002]
[1746248644787,0.3887997,96538.0,96537.0,0.002]
[1746248645082,1.1103997,96538.0,96537.0,0.002]
[1746248647474,1.1103997,96538.0,96537.0,0.001]
[1746248647680,0.2071255,96526.0,96507.0,0.00788106]
[1746248647985,0.5879255,96526.0,96523.0,0.04361417]
[1746248648282,0.5879255,96526.0,96525.0,0.11955393]
[1746248648879,0.6529255,96526.0,96525.0,0.11955393]
[1746248649587,0.6549255,96526.0,96525.0,0.11955393]
[1746248658186,0.6549255,96526.0,96525.0,0.00155393]
[1746248659199,0.6549255,96526.0,96525.0,0.11955393]
[1746248665203,0.6549255,96526.0,96525.0,0.118]
[1746248668594,0.6549255,96526.0,96525.0,0.1495]
[1746248670205,0.2941255,96526.0,96525.0,0.1495]
[1746248670399,0.6549255,96526.0,96525.0,0.1495]
[1746248671899,0.6579255,96526.0,96525.0,0.1495]
[1746248672907,0.6559255,96526.0,96525.0,0.1495]
[1746248673098,0.6599255,96526.0,96525.0,0.1495]
[1746248673506,0.6559255,96526.0,96525.0,0.1495]
[1746248673705,0.6629255,96526.0,96525.0,0.1495]
[1746248674007,0.6649255,96526.0,96525.0,0.1505]
[1746248675105,0.3041255,96526.0,96525.0,0.1505]
[1746248675299,0.6649255,96526.0,96525.0,0.1505]
[1746248694032,0.6659255,96526.0,96525.0,0.1505]
[1746248695232,0.6639255,96526.0,96525.0,0.1515]
[1746248695726,0.6589255,96526.0,96525.0,0.1505]
[1746248695932,0.6639255,96526.0,96525.0,0.1505]
[1746248696227,0.6559255,96526.0,96525.0,0.1495]
[1746248696932,0.6539255,96526.0,96525.0,0.1495]
[1746248697119,0.6579255,96526.0,96525.0,0.1505]
[1746248719552,0.6599255,96526.0,96525.0,0.1505]
[1746248720545,0.6559255,96526.0,96525.0,0.1495]
[1746248720745,0.6609255,96526.0,96525.0,0.1505]
[1746248721941,0.6549255,96526.0,96525.0,0.1505]
[1746248722144,0.6579255,96526.0,96525.0,0.1505]
[1746248722347,0.6579255,96526.0,96525.0,0.182]
[1746248722648,0.73698051,96526.0,96525.0,0.182]
[1746248722845,0.2071276,96525.0,96524.0,0.02446823]
[1746248723046,0.3512276,96525.0,96524.0,0.02446823]
[1746248723249,0.3512276,96525.0,96524.0,0.14246823]
[1746248724148,0.3562276,96525.0,96524.0,0.14346823]
[1746248725343,0.3602276,96525.0,96524.0,0.14346823]
[1746248726250,0.3602276,96525.0,96524.0,0.17426823]
[1746248738056,0.43928261,96525.0,96524.0,0.17426823]
[1746248738553,0.80008261,96525.0,96524.0,0.17426823]
[1746248742562,0.7210276,96525.0,96524.0,0.17426823]
[1746248753070,0.2071298,96524.0,96523.0,0.03750289]
[1746248753268,0.2071491,96515.0,96514.0,0.0303]
[1746248753670,0.2071491,96515.0,96514.0,0.0820895]
[1746248754073,0.2683491,96515.0,96514.0,0.0820895]
[1746248754369,0.2683491,96515.0,96514.0,0.2000895]
[1746248754572,0.2683491,96515.0,96514.0,0.2040895]
[1746248755572,0.2693491,96515.0,96514.0,0.2070895]
[1746248756370,0.2693491,96515.0,96514.0,0.2388895]
[1746248757772,0.2693491,96515.0,96514.0,0.2788895]
[1746248758072,0.2693491,96515.0,96514.0,0.2388895]
[1746248758273,0.2693491,96515.0,96514.0,0.2696895]
[1746248758573,0.2693491,96515.0,96514.0,0.3314495]
[1746248763572,0.2693491,96515.0,96514.0,0.48971855]
[1746248763877,0.2693491,96515.0,96514.0,0.56971855]
[1746248764488,0.2693491,96515.0,96514.0,0.53941855]
[1746248764775,0.2693491,96515.0,96514.0,0.66656975]
[1746248765977,0.2693491,96515.0,96514.0,0.45941855]
[1746248769580,0.2693491,96515.0,96514.0,0.66656975]
[1746248776086,0.2693491,96515.0,96514.0,0.5083007]
[1746248776283,0.2693491,96515.0,96514.0,0.4765007]
[1746248776685,0.2693491,96515.0,96514.0,0.4457007]
[1746248776884,0.2693491,96515.0,96514.0,0.2385495]
[1746248777191,0.2893491,96515.0,96514.0,0.125]
[1746248778083,0.2893491,96515.0,96514.0,0.007]
[1746248782496,0.6501491,96515.0,96514.0,0.007]
[1746248787101,0.7537611,96515.0,96514.0,0.007]
[1746248787303,0.2071641,96508.0,96507.0,0.00788106]
[1746248787602,0.2071791,96501.0,96500.0,0.25826905]
[1746248787803,0.2371791,96501.0,96500.0,0.25826905]
[1746248788198,0.2371791,96501.0,96500.0,0.4272222]
[1746248788398,0.2980791,96501.0,96500.0,0.4272222]
[1746248789304,0.3000791,96501.0,96500.0,0.4402222]
[1746248789903,0.3000791,96501.0,96500.0,0.4342222]
[1746248790104,0.3000791,96501.0,96500.0,0.4372222]
[1746248790407,0.3000791,96501.0,96500.0,0.27895315]
[1746248790792,0.2990791,96501.0,96500.0,0.27195315]
[1746248791106,0.2990791,96501.0,96500.0,0.27495315]
[1746248792301,0.2990791,96501.0,96500.0,0.28260466]
[1746248794107,0.6598791,96501.0,96500.0,0.28260466]
[1746248795208,0.2990791,96501.0,96500.0,0.28260466]
[1746248795407,0.6598791,96501.0,96500.0,0.28260466]
[1746248799411,0.2990791,96501.0,96500.0,0.28260466]
[1746248803715,0.3292791,96501.0,96500.0,0.28260466]
[1746248833426,0.3292791,96501.0,96500.0,0.28160466]
[1746248834422,0.3292791,96501.0,96500.0,0.28060466]
[1746248835131,0.3292791,96501.0,96500.0,0.27960466]
[1746248835934,0.3282791,96501.0,96500.0,0.27760466]
[1746248836236,0.3282791,96501.0,96500.0,0.27960466]
[1746248836237,0.3292791,96501.0,96500.0,0.27960466]
[1746248836933,0.3282791,96501.0,96500.0,0.27760466]
[1746248837131,0.3292791,96501.0,96500.0,0.27960466]
[1746248838133,0.3292791,96501.0,96500.0,0.27860466]
[1746248838322,0.3292791,96501.0,96500.0,0.27960466]
[1746248838736,0.3292791,96501.0,96500.0,0.27860466]
[1746248838927,0.3282791,96501.0,96500.0,0.27760466]
[1746248839131,0.3282791,96501.0,96500.0,0.27960466]
[1746248839836,0.3282791,96501.0,96500.0,0.27860466]
[1746248847543,0.3282791,96501.0,96500.0,0.27760466]
[1746248847843,0.3312791,96501.0,96500.0,0.27860466]
[1746248848041,0.3342791,96501.0,96500.0,0.27760466]
[1746248848439,0.3312791,96501.0,96500.0,0.27760466]
[1746248848745,0.3282791,96501.0,96500.0,0.27860466]
[1746248850144,0.3282791,96501.0,96500.0,0.13109043]
[1746248851034,0.3312791,96501.0,96500.0,0.13109043]
[1746248851738,0.3282791,96501.0,96500.0,0.13009043]
[1746248851936,0.3302791,96501.0,96500.0,0.13109043]
[1746248852243,0.3322791,96501.0,96500.0,0.13009043]
[1746248853830,0.3302791,96501.0,96500.0,0.13009043]
[1746248854145,0.3322791,96501.0,96500.0,0.13009043]
[1746248854443,0.3332791,96501.0,96500.0,0.13009043]
[1746248855038,0.3332791,96501.0,96500.0,0.12909043]
[1746248855247,0.3322791,96501.0,96500.0,0.13009043]
[1746248856745,0.3332791,96501.0,96500.0,0.13009043]
[1746248857547,0.3322791,96501.0,96500.0,0.13009043]
[1746248858050,0.3302791,96501.0,96500.0,0.13009043]
[1746248858256,0.3332791,96501.0,96500.0,0.13009043]
[1746248858759,0.3312791,96501.0,96500.0,0.12909043]
[1746248859049,0.3342791,96501.0,96500.0,0.13009043]
[1746248859235,0.3372791,96501.0,96500.0,0.13109043]
[1746248860347,0.3352791,96501.0,96500.0,0.13109043]
[1746248860845,0.3352791,96501.0,96500.0,0.07442043]
[1746248861041,0.2388791,96501.0,96500.0,0.34960173]
[1746248861247,0.2398791,96501.0,96500.0,0.14242043]
[1746248861747,0.2388791,96501.0,96500.0,0.23602043]
[1746248861940,0.2398791,96501.0,96500.0,0.23702043]
[1746248862141,0.2698791,96501.0,96500.0,0.16702043]
[1746248862339,0.2388791,96501.0,96500.0,0.16702043]
[1746248862546,0.2398791,96501.0,96500.0,0.17102043]
[1746248862742,0.2398791,96501.0,96500.0,0.21102043]
[1746248862940,0.2398791,96501.0,96500.0,0.15435043]
[1746248863139,0.2398791,96501.0,96500.0,0.47953173]
[1746248863349,0.2398791,96501.0,96500.0,0.44253173]
[1746248864051,0.2388791,96501.0,96500.0,0.43753173]
[1746248864244,0.2598791,96501.0,96500.0,0.44153173]
[1746248864641,0.2398791,96501.0,96500.0,0.44153173]
[1746248864843,0.2398791,96501.0,96500.0,0.38486173]
[1746248865353,0.2598791,96501.0,96500.0,0.38486173]
[1746248865745,0.2398791,96501.0,96500.0,0.38486173]
[1746248866256,0.2388791,96501.0,96500.0,0.38086173]
[1746248866454,0.2398791,96501.0,96500.0,0.38486173]
[1746248866857,0.2398791,96501.0,96500.0,0.34819173]
[1746248867159,0.2398791,96501.0,96500.0,0.145]
[1746248867454,0.2598791,96501.0,96500.0,0.17619185]
[1746248867653,0.2598791,96501.0,96500.0,0.38337315]
[1746248867857,0.2588791,96501.0,96500.0,0.38037315]
[1746248868157,0.2598791,96501.0,96500.0,0.39115681]
[1746248868856,0.2598791,96501.0,96500.0,0.33448681]
[1746248869650,0.2498791,96501.0,96500.0,0.33448681]
[1746248870855,0.2498791,96501.0,96500.0,0.27781681]
[1746248874161,0.2498791,96501.0,96500.0,0.07063551]
[1746248878153,0.2804791,96501.0,96500.0,0.07063551]
[1746248878559,0.2071856,96498.0,96497.0,0.2071861]
[1746248878752,0.2071856,96498.0,96497.0,0.2689061]
[1746248879164,0.2071856,96498.0,96497.0,0.3869061]
[1746248879455,0.2705856,96498.0,96497.0,0.3869061]
[1746248879663,0.2715856,96498.0,96497.0,0.3909061]
[1746248880161,0.2725856,96498.0,96497.0,0.3939061]
[1746248880662,0.2725856,96498.0,96497.0,0.44615474]
[1746248881755,0.2725856,96498.0,96497.0,0.4539695]
[1746248882264,0.2725856,96498.0,96497.0,0.61223855]
[1746248886967,0.2725856,96498.0,96497.0,0.4539695]
[1746248892269,0.2715856,96498.0,96497.0,0.4499695]
[1746248892468,0.2725856,96498.0,96497.0,0.4499695]
[1746248893072,0.2715856,96498.0,96497.0,0.4469695]
[1746248893267,0.2725856,96498.0,96497.0,0.4499695]
[1746248893662,0.2715856,96498.0,96497.0,0.4469695]
[1746248893863,0.2725856,96498.0,96497.0,0.4489695]
[1746248894768,0.2705856,96498.0,96497.0,0.4469695]
[1746248894970,0.2725856,96498.0,96497.0,0.4489695]
[1746248896771,0.2725856,96498.0,96497.0,0.4469695]
[1746248897071,0.2725856,96498.0,96497.0,0.4489695]
[1746248906080,0.2725856,96498.0,96497.0,0.5689695]
[1746248906290,0.2725856,96498.0,96497.0,0.4489695]
[1746248911497,0.2725856,96498.0,96497.0,0.6073981]
[1746248912703,0.2725856,96498.0,96497.0,0.400212]
[1746248912901,0.2725856,96498.0,96497.0,0.6073997]
[1746248914095,0.2725856,96498.0,96497.0,0.400212]
[1746248914398,0.2725856,96498.0,96497.0,0.6073997]
[1746248914798,0.2725856,96498.0,96497.0,0.4489711]
[1746248932107,0.2715856,96498.0,96497.0,0.4489711]
[1746248932310,0.2725856,96498.0,96497.0,0.4489711]
[1746248934610,0.2725856,96498.0,96497.0,0.2417834]
[1746248937402,0.2715856,96498.0,96497.0,0.2417834]
[1746248937605,0.2725856,96498.0,96497.0,0.2417834]
[1746248938009,0.2725856,96498.0,96497.0,0.2427834]
[1746248939011,0.2725856,96498.0,96497.0,0.2397834]
[1746248939204,0.2725856,96498.0,96497.0,0.2427834]
[1746248940112,0.2725856,96498.0,96497.0,0.2397834]
[1746248940305,0.2725856,96498.0,96497.0,0.2427834]
[1746248940606,0.2715856,96498.0,96497.0,0.2427834]
[1746248940814,0.2725856,96498.0,96497.0,0.2427834]
[1746248941311,0.2715856,96498.0,96497.0,0.2427834]
[1746248941514,0.2725856,96498.0,96497.0,0.2427834]
[1746248941701,0.2725856,96498.0,96497.0,0.2397834]
[1746248941907,0.2725856,96498.0,96497.0,0.2417834]
[1746248956127,0.2725856,96498.0,96497.0,0.4489711]
[1746248963729,0.2725856,96498.0,96497.0,0.2417834]
[1746248964233,0.2725856,96498.0,96497.0,0.4489711]
[1746248965030,0.2725856,96498.0,96497.0,0.3872511]
[1746248966347,0.2725856,96498.0,96497.0,0.1800634]
[1746248983759,0.3025856,96498.0,96497.0,0.1800634]
[1746248988152,0.3025856,96498.0,96497.0,0.0620634]
[1746248989754,0.2071942,96494.0,96493.0,0.11777886]
[1746248989958,0.2271942,96494.0,96493.0,0.06787886]
[1746248990562,0.2933942,96494.0,96493.0,0.06787886]
[1746248990953,0.2943942,96494.0,96493.0,0.07087886]
[1746248991154,0.2953942,96494.0,96493.0,0.07087886]
[1746248991858,0.3003942,96494.0,96493.0,0.07087886]
[1746248992063,0.4223942,96494.0,96493.0,0.06887886]
[1746248993767,0.4223942,96494.0,96493.0,0.001]
[1746248994164,0.3043942,96494.0,96493.0,0.001]
[1746248997163,0.6651942,96494.0,96493.0,0.001]
[1746249000975,0.3043942,96494.0,96493.0,0.001]
[1746249001165,0.6651942,96494.0,96493.0,0.001]
[1746249001470,0.6651942,96494.0,96490.0,0.00795582]
[1746249001673,0.2072114,96486.0,96485.0,0.00103643]
[1746249001865,0.5980114,96486.0,96485.0,0.00103643]
[1746249002072,0.5980114,96486.0,96485.0,0.11903643]
[1746249003873,0.5990114,96486.0,96485.0,0.17162191]
[1746249004170,0.5990114,96486.0,96485.0,0.11903643]
[1746249004567,0.6000114,96486.0,96485.0,0.12003643]
[1746249005970,0.5990114,96486.0,96485.0,0.12003643]
[1746249006274,0.6010114,96486.0,96485.0,0.12784574]
[1746249007074,0.6020114,96486.0,96485.0,0.12684574]
[1746249007572,0.6000114,96486.0,96485.0,0.12784574]
[1746249008677,0.6020114,96486.0,96485.0,0.12684574]
[1746249009076,0.6010114,96486.0,96485.0,0.12684574]
[1746249009380,0.6030114,96486.0,96485.0,0.12684574]
[1746249009677,0.5730114,96486.0,96485.0,0.17937037]
[1746249009878,0.6340114,96486.0,96485.0,0.17937037]
[1746249010671,0.5740114,96486.0,96485.0,0.20937037]
[1746249010871,0.6240114,96486.0,96485.0,0.17937037]
[1746249011373,0.6210114,96486.0,96485.0,0.17937037]
[1746249011578,0.6240114,96486.0,96485.0,0.17937037]
[1746249012478,0.6210114,96486.0,96485.0,0.17937037]
[1746249012671,0.6240114,96486.0,96485.0,0.17937037]
[1746249014979,0.6210114,96486.0,96485.0,0.17937037]
[1746249015169,0.6240114,96486.0,96485.0,0.17937037]
[1746249015365,0.2632114,96486.0,96485.0,0.17937037]
[1746249015569,0.6210114,96486.0,96485.0,0.17937037]
[1746249015776,0.6240114,96486.0,96485.0,0.17937037]
[1746249016478,0.6210114,96486.0,96485.0,0.17937037]
[1746249016677,0.6240114,96486.0,96485.0,0.17937037]
[1746249017178,0.5710114,96486.0,96485.0,0.17937037]
[1746249017372,0.5940114,96486.0,96485.0,0.17937037]
[1746249017877,0.6252114,96486.0,96485.0,0.17937037]
[1746249018378,0.6222114,96486.0,96485.0,0.17937037]
[1746249018578,0.6252114,96486.0,96485.0,0.17937037]
[1746249019479,0.6222114,96486.0,96485.0,0.17937037]
[1746249019680,0.6252114,96486.0,96485.0,0.17937037]
[1746249020383,0.6282114,96486.0,96485.0,0.17937037]
[1746249021181,0.6312114,96486.0,96485.0,0.17937037]
[1746249023383,0.6252114,96486.0,96485.0,0.17937037]
[1746249023577,0.6312114,96486.0,96485.0,0.17937037]
[1746249023779,0.2704114,96486.0,96485.0,0.17937037]
[1746249023982,0.6312114,96486.0,96485.0,0.17937037]
[1746249024283,0.2704114,96486.0,96485.0,0.17937037]
[1746249024484,0.6312114,96486.0,96485.0,0.17937037]
[1746249035293,0.6112114,96486.0,96485.0,0.17937037]
[1746249093054,0.2504114,96486.0,96485.0,0.17937037]
[1746249093253,0.6112114,96486.0,96485.0,0.17937037]
[1746249108264,0.6122114,96486.0,96485.0,0.17937037]
[1746249114279,0.6122114,96486.0,96485.0,0.12684574]
[1746249115879,0.6122114,96486.0,96473.0,0.21029823]
[1746249115880,0.2072371,96474.0,96473.0,0.15848863]
[1746249116176,0.5680371,96474.0,96473.0,1e-08]
[1746249116372,0.6716931,96474.0,96473.0,1e-08]
[1746249116772,0.7334931,96474.0,96473.0,1e-08]
[1746249118180,0.2072543,96466.0,96465.0,0.00780903]
[1746249118381,0.2072586,96464.0,96463.0,0.21236709]
[1746249119069,0.2690586,96464.0,96463.0,0.33036709]
[1746249119468,0.2690586,96464.0,96463.0,0.38229262]
[1746249119866,0.2700586,96464.0,96463.0,0.38229262]
[1746249121471,0.2700586,96464.0,96463.0,0.38995475]
[1746249121676,0.2710586,96464.0,96463.0,0.38995475]
[1746249123285,0.2710586,96464.0,96463.0,0.12721723]
[1746249134582,0.2710586,96464.0,96463.0,0.1195551]
[1746249153095,0.6318586,96464.0,96463.0,0.1195551]
[1746249155196,0.6318586,96464.0,96463.0,0.118]
[1746249158305,0.2710586,96464.0,96463.0,0.118]
[1746249158497,0.6318586,96464.0,96463.0,0.118]
[1746249160904,0.2072715,96458.0,96457.0,0.00115097]
[1746249161099,0.2072737,96457.0,96456.0,0.0027]
[1746249161299,0.2706737,96457.0,96456.0,0.0027]
[1746249162203,0.2706737,96457.0,96456.0,0.16480849]
[1746249162803,0.2726737,96457.0,96456.0,0.16480849]
[1746249163304,0.2726737,96457.0,96456.0,0.17244243]
[1746249167907,0.2726737,96457.0,96456.0,0.16974243]
[1746249183018,0.6334737,96457.0,96456.0,0.16974243]
[1746249188227,0.6334737,96457.0,96456.0,0.22974243]
[1746249188426,0.6334737,96457.0,96456.0,0.16974243]
[1746249191527,0.2726737,96457.0,96456.0,0.16974243]
[1746249191732,0.6334737,96457.0,96456.0,0.16974243]
[1746249200833,0.6384737,96457.0,96456.0,0.16974243]
[1746249201436,0.6454737,96457.0,96456.0,0.16974243]
[1746249202134,0.6384737,96457.0,96456.0,0.16974243]
[1746249202330,0.6454737,96457.0,96456.0,0.16974243]
[1746249203234,0.6444737,96457.0,96456.0,0.16974243]
[1746249203534,0.6444737,96457.0,96456.0,0.12563394]
[1746249205835,0.4372,96457.0,96430.0,0.4137]
[1746249206033,0.2073209,96435.0,96434.0,0.59081199]
[1746249206231,0.2073209,96435.0,96434.0,0.65241199]
[1746249206430,0.2073209,96435.0,96434.0,0.5984203]
[1746249206736,0.2073209,96435.0,96434.0,0.27114828]
[1746249207038,0.2693209,96435.0,96434.0,0.27114828]
[1746249207338,0.2693209,96435.0,96434.0,0.38914828]
[1746249208037,0.2703209,96435.0,96434.0,0.38914828]
[1746249208236,0.2703209,96435.0,96434.0,0.17833629]
[1746249208736,0.2713209,96435.0,96434.0,0.17833629]
[1746249209037,0.2713209,96435.0,96434.0,0.12560831]
[1746249211841,0.2713209,96435.0,96434.0,0.17715207]
[1746249231765,0.2713209,96435.0,96434.0,0.23715207]
[1746249231958,0.2713209,96435.0,96434.0,0.17715207]
[1746249237061,0.2713209,96435.0,96434.0,0.23715207]
[1746249237264,0.2713209,96435.0,96434.0,0.17715207]
[1746249237659,0.2713209,96435.0,96434.0,0.23715207]
[1746249240149,0.2713209,96435.0,96434.0,0.38447517]
[1746249240350,0.2713209,96435.0,96434.0,0.69447517]
[1746249240750,0.2713209,96435.0,96434.0,0.69717517]
[1746249245965,0.2713209,96435.0,96434.0,0.69447517]
[1746249263069,0.2713209,96435.0,96434.0,0.48715207]
[1746249265066,0.2713209,96435.0,96434.0,0.69447517]
[1746249273277,0.2713209,96435.0,96434.0,0.38447517]
[1746249273679,0.2713209,96435.0,96434.0,0.41447517]
[1746249273886,0.2713209,96435.0,96434.0,1.01527517]
[1746249274079,0.2713209,96435.0,96434.0,0.65447517]
[1746249274587,0.2713209,96435.0,96434.0,0.65717517]
[1746249275892,0.2713209,96435.0,96434.0,0.68917517]
[1746249285083,0.2713209,96435.0,96434.0,0.56356686]
[1746249285288,0.2713209,96435.0,96434.0,0.51907662]
[1746249285489,0.2713209,96435.0,96434.0,0.58067662]
[1746249286191,0.2713209,96435.0,96434.0,0.69867662]
[1746249288199,0.2713209,96435.0,96434.0,0.70661522]
[1746249289902,0.2713209,96435.0,96434.0,0.70391522]
[1746249293791,0.2713209,96435.0,96434.0,0.67191522]
[1746249297706,0.064,96435.0,96434.0,0.67191522]
[1746249298697,0.2713209,96435.0,96434.0,0.67191522]
[1746249304114,0.2713209,96435.0,96434.0,0.83051185]
[1746249306714,0.2703209,96435.0,96434.0,0.83051185]
[1746249307113,0.2713209,96435.0,96434.0,0.83051185]
[1746249307306,0.2703209,96435.0,96434.0,0.83051185]
[1746249307511,0.2713209,96435.0,96434.0,0.67191522]
[1746249311619,0.4126131,96467.0,96444.0,0.2591222]
[1746249311818,0.2073007,96445.0,96444.0,0.4691222]
[1746249312123,0.2073007,96445.0,96444.0,0.5871222]
[1746249313019,0.2083007,96445.0,96444.0,0.5881222]
[1746249313518,0.2093007,96445.0,96444.0,0.5881222]
[1746249315529,0.2715007,96445.0,96444.0,0.5881222]
[1746249322531,0.0518075,96478.0,96454.0,0.2072801]
[1746249322730,0.0844181,96458.0,96457.0,0.2072715]
[1746249322930,0.0844181,96458.0,96457.0,0.3372715]
[1746249323131,0.0844181,96458.0,96457.0,0.4552715]
[1746249323631,0.3435192,96458.0,96457.0,0.4552715]
[1746249324137,0.3445192,96458.0,96457.0,0.4562715]
[1746249324637,0.2926997,96458.0,96457.0,0.4562715]
[1746249325631,0.2926997,96458.0,96457.0,0.4592715]
[1746249325837,0.2936997,96458.0,96457.0,0.4592715]
[1746249326738,0.002,96458.0,96457.0,0.4592715]
[1746249326939,0.2092715,96458.0,96457.0,0.4903715]
[1746249329641,0.002,96458.0,96457.0,0.4903715]
[1746249330342,0.2092715,96458.0,96457.0,0.4903715]
[1746249331149,0.002,96458.0,96457.0,0.4903715]
[1746249331940,0.0632,96458.0,96457.0,0.4903715]
[1746249340552,0.2704715,96458.0,96457.0,0.4903715]
[1746249341451,0.2704715,96458.0,96457.0,0.5225715]
[1746249342054,0.2072382,96474.0,96471.0,0.2072436]
[1746249342265,0.2072329,96476.0,96471.0,0.14]
[1746249342559,0.0015,96480.0,96479.0,0.2072264]
[1746249342751,0.0015,96480.0,96479.0,0.3972264]
[1746249343153,0.0015,96480.0,96479.0,0.5152264]
[1746249343354,0.0015,96480.0,96479.0,0.5795264]
[1746249343553,0.0328,96480.0,96479.0,0.5795264]
[1746249344059,0.0015,96480.0,96479.0,0.63250115]
[1746249345156,0.0095,96480.0,96479.0,0.63350115]
[1746249345351,0.0175,96480.0,96479.0,0.63450115]
[1746249345551,0.0095,96480.0,96479.0,0.63350115]
[1746249345754,0.0165,96480.0,96479.0,0.63450115]
[1746249349954,0.0165,96480.0,96479.0,0.99530115]
[1746249353961,0.0165,96480.0,96479.0,0.63450115]
[1746249354164,0.0165,96480.0,96479.0,0.99530115]
[1746249361873,0.0165,96480.0,96479.0,0.96420115]
[1746249368978,0.0165,96480.0,96479.0,0.60340115]
[1746249369171,0.0165,96480.0,96479.0,0.96420115]
[1746249373672,0.0475,96480.0,96479.0,0.96420115]
[1746249375680,0.2547242,96480.0,96479.0,0.63188115]
[1746249375871,0.2547242,96480.0,96479.0,0.51188115]
[1746249376181,0.2547242,96480.0,96479.0,0.39388115]
[1746249390090,0.2547242,96480.0,96479.0,0.51188115]
[1746249392194,0.2547242,96480.0,96479.0,0.39388115]
[1746249393086,0.2547242,96480.0,96479.0,0.51188115]
[1746249397495,0.2547242,96480.0,96479.0,0.54268115]
[1746249417711,0.2547242,96480.0,96479.0,0.70103063]
[1746249424920,0.2547242,96480.0,96479.0,0.54268115]
[1746249427217,0.0475,96480.0,96479.0,0.54268115]
[1746249427421,0.2072113,96487.0,96485.0,0.2072135]
[1746249427622,0.0518005,96491.0,96485.0,0.3572135]
[1746249427815,0.2082114,96486.0,96485.0,0.3572135]
[1746249428121,0.2082114,96486.0,96485.0,0.4752135]
[1746249428320,0.2082114,96486.0,96485.0,0.48302119]
[1746249428717,0.2152114,96486.0,96485.0,0.48402119]
[1746249428921,0.2242114,96486.0,96485.0,0.48502119]
[1746249429121,0.2857114,96486.0,96485.0,0.51792119]
[1746249446925,0.2787114,96486.0,96485.0,0.51692119]
[1746249447126,0.2787114,96486.0,96485.0,0.52092119]
[1746249447724,0.2697114,96486.0,96485.0,0.52392119]
[1746249456431,0.2697114,96486.0,96485.0,0.31670769]
[1746249456635,0.2697114,96486.0,96485.0,0.52392119]
[1746249457138,0.2697114,96486.0,96485.0,0.31670769]
[1746249457326,0.2697114,96486.0,96485.0,0.28380769]
[1746249457632,0.2697114,96486.0,96485.0,0.13380769]
[1746249457832,0.2697114,96486.0,96485.0,0.15380769]
[1746249458634,0.2697114,96486.0,96485.0,0.36102119]
[1746249461638,0.2697114,96486.0,96485.0,0.42266119]
[1746249464745,0.2697114,96486.0,96485.0,0.36102119]
[1746249464945,0.2697114,96486.0,96485.0,0.42266119]
[1746249470839,0.0518013,96489.0,96488.0,0.2072071]
[1746249471144,0.0518013,96489.0,96488.0,0.5152071]
[1746249472043,0.0518013,96489.0,96488.0,0.5182071]
[1746249472350,0.0518013,96489.0,96488.0,0.5212071]
[1746249472648,0.3108149,96489.0,96488.0,0.5212071]
[1746249474150,0.3108149,96489.0,96488.0,0.5543071]
[1746249474448,0.3108149,96489.0,96488.0,0.5513071]
[1746249474648,0.3118149,96489.0,96488.0,0.5483071]
[1746249475349,0.3108149,96489.0,96488.0,0.5483071]
[1746249476246,0.3108149,96489.0,96488.0,0.5523071]
[1746249477754,0.3118149,96489.0,96488.0,0.5563071]
[1746249478550,0.3118149,96489.0,96488.0,0.5232071]
[1746249481450,0.3118149,96489.0,96488.0,0.5192071]
[1746249481651,0.3118149,96489.0,96488.0,0.5232071]
[1746249482347,0.3108149,96489.0,96488.0,0.5232071]
[1746249493745,0.3108149,96489.0,96488.0,0.5848471]
[1746249502562,0.3108149,96489.0,96488.0,0.5232071]
[1746249502766,0.3108149,96489.0,96488.0,0.5848471]
[1746249530483,0.3749149,96489.0,96488.0,0.5768471]
[1746249530683,0.3749149,96489.0,96488.0,0.5848471]
[1746249531681,0.3749149,96489.0,96488.0,0.5838471]
[1746249532684,0.3749149,96489.0,96488.0,0.5798471]
[1746249532884,0.3749149,96489.0,96488.0,0.5838471]
[1746249534482,0.06248589,96497.0,96493.0,0.0517986]
[1746249534685,0.001,96516.0,96509.0,0.0517904]
[1746249534880,0.001,96516.0,96515.0,0.5679491]
[1746249535079,0.33062708,96537.0,96536.0,0.207104]
[1746249535281,0.33062708,96537.0,96536.0,0.277104]
[1746249536184,0.33062708,96537.0,96536.0,0.395104]
[1746249536578,0.33062708,96537.0,96536.0,0.396104]
[1746249536784,0.33562708,96537.0,96536.0,0.396104]
[1746249537487,0.34262708,96537.0,96536.0,0.397104]
[1746249538383,0.033,96545.0,96544.0,0.2070869]
[1746249538584,0.033,96545.0,96544.0,0.3237087]
[1746249538987,0.033,96545.0,96544.0,0.3557087]
[1746249539886,0.0728,96545.0,96544.0,0.3567087]
[1746249541082,0.0788,96545.0,96544.0,0.4747087]
[1746249542091,0.0788,96545.0,96544.0,0.3567087]
[1746249542593,0.2858847,96545.0,96544.0,0.3567087]
[1746249543102,0.2858847,96545.0,96544.0,0.4747087]
[1746249543293,0.2858847,96545.0,96544.0,0.48241685]
[1746249544288,0.2858847,96545.0,96544.0,0.36441685]
[1746249545594,0.2858847,96545.0,96544.0,0.72521685]
[1746249549295,0.2858847,96545.0,96544.0,0.36441685]
[1746249549498,0.2858847,96545.0,96544.0,0.72521685]
[1746249549998,0.2858847,96545.0,96544.0,0.36441685]
[1746249550192,0.2858847,96545.0,96544.0,0.72521685]
[1746249551792,0.2858847,96545.0,96544.0,0.36441685]
[1746249551997,0.2858847,96545.0,96544.0,0.72521685]
[1746249554102,0.2858847,96545.0,96544.0,0.48241685]
[1746249554295,0.2858847,96545.0,96544.0,0.84321685]
[1746249556505,0.0788,96545.0,96544.0,0.84321685]
[1746249557104,0.2858847,96545.0,96544.0,0.84321685]
[1746249557998,0.0015,96550.0,96549.0,0.2070761]
[1746249558200,0.2070321,96572.0,96571.0,0.2070276]